bitfinex-derivatives/quotes_SOLF0:USTF0_20241212
["timestamp","ask_amount","ask_price","bid_price","bid_amount"]
[1734006273547,8.19020503,230.69,230.65,2.1672]
[1734006275154,8.19020503,230.69,230.66,2.1671]
[1734006275452,10.21020503,230.71,230.64,8.19020503]
[1734006275654,8.19020503,230.71,230.64,8.19020503]
[1734006275853,1.363,230.76,230.64,8.19020503]
[1734006275854,2.02,230.72,230.64,8.19020503]
[1734006276053,12.37670503,230.73,230.64,8.19020503]
[1734006276249,12.37670503,230.73,230.66,2.167]
[1734006276548,12.37670503,230.73,230.64,8.19020503]
[1734006276950,10.21020503,230.73,230.66,8.19020503]
[1734006277152,2.02,230.73,230.66,8.19020503]
[1734006277854,10.21020503,230.75,230.7,2.1666]
[1734006278450,10.21020503,230.75,230.68,8.19020503]
[1734006278650,10.21020503,230.75,230.71,2.1666]
[1734006278959,11.66110503,230.77,230.68,8.19020503]
[1734006279147,11.66110503,230.77,230.72,2.1665]
[1734006280549,13.82720503,230.77,230.72,2.1665]
[1734006280751,8.19020503,230.75,230.7,2.1667]
[1734006281554,10.35650503,230.75,230.7,2.1667]
[1734006283954,8.19020503,230.75,230.71,2.1666]
[1734006288563,10.35650503,230.75,230.71,2.1666]
[1734006288863,10.35650503,230.75,230.71,7.45799745]
[1734006289860,8.19020503,230.75,230.71,7.45799745]
[1734006293767,8.19020503,230.75,230.72,2.1665]
[1734006295171,2.1662,230.76,230.72,2.1665]
[1734006295368,13.82720503,230.77,230.72,2.1665]
[1734006295575,11.66110503,230.77,230.72,2.1665]
[1734006296574,2.1662,230.76,230.72,2.1665]
[1734006297780,11.66110503,230.77,230.73,2.1664]
[1734006299079,10.21020503,230.77,230.75,2.1663]
[1734006299678,8.19020503,230.77,230.75,2.1663]
[1734006303482,8.19020503,230.77,230.71,5.21702626]
[1734006304577,10.35630503,230.77,230.71,5.21702626]
[1734006304780,8.19020503,230.77,230.72,2.1665]
[1734006305076,8.19020503,230.73,230.72,2.1665]
[1734006305281,8.19020503,230.73,230.66,8.19020503]
[1734006305685,8.19020503,230.73,230.69,2.1667]
[1734006307585,8.19020503,230.73,230.65,0.41819]
[1734006307786,8.19020503,230.71,230.65,0.41819]
[1734006307981,8.19020503,230.69,230.65,0.41819]
[1734006308181,10.21020503,230.69,230.65,0.41819]
[1734006308683,8.19020503,230.67,230.65,0.41819]
[1734006309277,10.21020503,230.69,230.65,0.41819]
[1734006309684,10.21020503,230.69,230.65,2.58529]
[1734006311383,12.37700503,230.69,230.65,0.41819]
[1734006312577,8.19020503,230.67,230.65,0.41819]
[1734006312780,8.19020503,230.67,230.59,5.14234888]
[1734006312984,8.19020503,230.65,230.59,7.31014888]
[1734006313283,2.02,230.64,230.59,7.31014888]
[1734006315587,8.19020503,230.63,230.59,2.1678]
[1734006319384,10.35760503,230.63,230.55,8.19020503]
[1734006319682,11.77720503,230.63,230.55,8.19020503]
[1734006320390,8.19020503,230.61,230.56,2.168]
[1734006320688,8.19020503,230.61,230.55,8.19020503]
[1734006321683,8.19020503,230.61,230.57,2.1679]
[1734006322289,8.19020503,230.61,230.58,2.1678]
[1734006322490,11.00200503,230.63,230.56,13.45678401]
[1734006322692,2.8118,230.63,230.56,13.45678401]
[1734006322891,2.8118,230.63,230.58,8.19020503]
[1734006323188,1.4539,230.73,230.62,8.19020503]
[1734006323389,8.19020503,230.7,230.62,8.19020503]
[1734006323893,8.19020503,230.7,230.65,2.1671]
[1734006324190,8.19020503,230.7,230.62,8.19020503]
[1734006324384,8.19020503,230.7,230.56,5.26657898]
[1734006324385,10.90760503,230.72,230.64,8.19020503]
[1734006324584,2.02,230.71,230.64,8.19020503]
[1734006324995,2.02,230.71,230.67,2.1669]
[1734006327499,2.02,230.71,230.68,2.1668]
[1734006334605,2.02,230.71,230.64,8.19020503]
[1734006335004,2.02,230.71,230.68,2.1668]
[1734006336199,2.1668,230.69,230.6,2.1676]
[1734006336405,2.1668,230.69,230.61,8.19020503]
[1734006336909,2.1668,230.69,230.64,2.1672]
[1734006337609,2.1668,230.69,230.65,2.1672]
[1734006338302,8.19020503,230.7,230.65,2.1672]
[1734006338303,10.35690503,230.7,230.65,2.1672]
[1734006340308,10.35700503,230.7,230.61,8.19020503]
[1734006340515,2.02,230.71,230.63,8.19020503]
[1734006342410,2.02,230.71,230.66,2.167]
[1734006342812,8.19020503,230.7,230.66,2.167]
[1734006343010,8.19020503,230.68,230.6,8.19020503]
[1734006343211,8.19020503,230.66,230.56,5.26657898]
[1734006343408,2.02,230.65,230.58,8.19020503]
[1734006343612,4.1873,230.65,230.6,2.1676]
[1734006344407,2.02,230.65,230.61,2.1676]
[1734006346916,4.1872,230.65,230.6,2.1676]
[1734006347416,4.1872,230.65,230.56,5.26657898]
[1734006347417,8.19020503,230.64,230.57,8.19020503]
[1734006347611,10.35760503,230.64,230.57,8.19020503]
[1734006348010,10.35760503,230.64,230.58,2.1678]
[1734006349916,10.35760503,230.64,230.57,8.19020503]
[1734006350213,10.35760503,230.64,230.59,2.1678]
[1734006350818,2.1674,230.63,230.59,2.1678]
[1734006351618,10.35780503,230.62,230.56,2.168]
[1734006351822,10.35780503,230.62,230.54,8.19020503]
[1734006352120,10.35780503,230.62,230.49,6.3573]
[1734006352121,8.19020503,230.62,230.56,8.19020503]
[1734006352417,10.96160503,230.64,230.56,8.19020503]
[1734006353621,13.12890503,230.64,230.59,2.1677]
[1734006355519,13.12890503,230.64,230.6,2.1677]
[1734006356422,10.96160503,230.64,230.56,8.19020503]
[1734006356619,10.96160503,230.64,230.62,2.1675]
[1734006356917,2.7714,230.64,230.56,8.19020503]
[1734006357121,2.7714,230.64,230.58,8.19020503]
[1734006357621,2.7714,230.64,230.62,2.1674]
[1734006360222,2.02,230.63,230.62,2.1674]
[1734006361128,2.02,230.66,230.6,8.19020503]
[1734006361529,2.167,230.68,230.6,8.19020503]
[1734006361724,2.02,230.67,230.64,2.1672]
[1734006362121,12.37720503,230.67,230.64,2.1672]
[1734006362519,12.37720503,230.67,230.63,2.1674]
[1734006362520,10.21020503,230.67,230.63,2.1674]
[1734006363325,10.21020503,230.67,230.64,2.1673]
[1734006363927,12.37730503,230.67,230.64,2.1673]
[1734006364526,10.21020503,230.67,230.64,2.1673]
[1734006364729,2.1671,230.66,230.64,2.1673]
[1734006367132,2.1671,230.66,230.6,8.19020503]
[1734006367133,2.1671,230.66,230.63,2.1674]
[1734006368531,2.1672,230.65,230.63,2.1674]
[1734006370324,8.19020503,230.65,230.58,5.13439409]
[1734006370535,8.19020503,230.65,230.57,8.19020503]
[1734006370832,2.1676,230.61,230.55,2.1681]
[1734006371134,2.1676,230.61,230.57,8.19020503]
[1734006372228,4.1875,230.62,230.57,10.35810503]
[1734006372736,2.02,230.68,230.61,8.19020503]
[1734006373138,2.02,230.68,230.63,2.1673]
[1734006373339,2.02,230.68,230.61,8.19020503]
[1734006373540,2.02,230.67,230.63,8.19020503]
[1734006373834,2.02,230.69,230.66,2.167]
[1734006374032,13.06480503,230.72,230.66,2.167]
[1734006374033,2.708,230.72,230.66,2.167]
[1734006374234,9.64410503,230.73,230.69,8.19020503]
[1734006374235,2.02,230.73,230.69,8.19020503]
[1734006374432,2.02,230.73,230.69,10.35700503]
[1734006374938,4.1865,230.73,230.69,8.19020503]
[1734006375135,4.1865,230.73,230.68,2.1669]
[1734006376136,2.02,230.73,230.67,8.19020503]
[1734006376338,8.19020503,230.7,230.63,2.1673]
[1734006377037,2.1669,230.69,230.62,8.19020503]
[1734006377238,2.6588,230.73,230.64,8.19020503]
[1734006377537,2.02,230.72,230.68,8.19020503]
[1734006378141,2.02,230.72,230.69,2.1668]
[1734006378340,2.02,230.72,230.68,8.19020503]
[1734006378737,2.1663,230.75,230.68,8.19020503]
[1734006378945,2.02,230.74,230.68,8.19020503]
[1734006379642,2.02,230.74,230.7,2.1667]
[1734006380241,2.1663,230.75,230.7,2.1667]
[1734006380547,4.1863,230.75,230.71,2.1666]
[1734006381356,2.1664,230.73,230.69,2.1668]
[1734006381563,8.19020503,230.74,230.66,8.19020503]
[1734006381752,2.02,230.75,230.64,8.19020503]
[1734006381753,8.19020503,230.72,230.64,8.19020503]
[1734006382559,2.1667,230.71,230.66,2.1671]
[1734006384358,2.1667,230.71,230.67,2.167]
[1734006384555,2.1666,230.72,230.67,2.167]
[1734006391761,10.35680503,230.72,230.67,2.167]
[1734006392362,2.1666,230.72,230.67,2.167]
[1734006393468,2.1666,230.72,230.68,2.1669]
[1734006394975,2.1666,230.72,230.66,8.19020503]
[1734006395270,2.1666,230.72,230.67,2.167]
[1734006395972,2.1666,230.72,230.65,8.19020503]
[1734006396172,2.1665,230.73,230.68,2.1669]
[1734006397071,2.02,230.75,230.67,8.19020503]
[1734006397278,2.02,230.75,230.69,8.19020503]
[1734006398781,4.1863,230.75,230.71,2.1666]
[1734006398978,2.02,230.75,230.69,8.19020503]
[1734006399274,10.21020503,230.75,230.67,8.19020503]
[1734006399778,2.1664,230.74,230.7,2.1667]
[1734006406278,8.19020503,230.73,230.64,10.21020503]
[1734006406881,8.19020503,230.71,230.64,8.19020503]
[1734006407083,8.19020503,230.69,230.59,2.02]
[1734006407381,8.19020503,230.69,230.61,8.19020503]
[1734006407579,2.167,230.68,230.63,2.1673]
[1734006407778,8.19020503,230.67,230.6,8.19020503]
[1734006407978,8.19020503,230.67,230.59,2.02]
[1734006408281,8.19020503,230.67,230.6,8.19020503]
[1734006408676,10.35730503,230.67,230.61,2.1675]
[1734006409483,10.35730503,230.67,230.62,2.1675]
[1734006410476,2.02,230.7,230.59,2.1678]
[1734006410477,2.1673,230.64,230.59,2.1678]
[1734006411381,10.35760503,230.63,230.58,2.1678]
[1734006411685,8.19020503,230.63,230.57,85.93011217]
[1734006412081,8.19020503,230.63,230.55,13.38071881]
[1734006412575,2.1675,230.62,230.57,2.1679]
[1734006412772,2.1675,230.62,230.55,8.19020503]
[1734006413686,2.1675,230.62,230.56,2.168]
[1734006416483,8.19020503,230.63,230.57,8.19020503]
[1734006416786,4.2403,230.69,230.54,5.28391171]
[1734006416787,4.2403,230.69,230.61,8.19020503]
[1734006416985,10.21020503,230.68,230.61,8.19020503]
[1734006417791,2.02,230.67,230.61,8.19020503]
[1734006418588,8.19020503,230.68,230.64,2.1673]
[1734006418791,2.02,230.67,230.64,2.1673]
[1734006419092,2.02,230.67,230.65,2.1672]
[1734006419292,2.02,230.67,230.63,8.19020503]
[1734006419984,2.02,230.67,230.66,2.1671]
[1734006425694,2.02,230.69,230.67,2.1669]
[1734006426087,2.02,230.7,230.67,2.1669]
[1734006427287,4.1867,230.7,230.67,2.1669]
[1734006430996,2.1668,230.69,230.63,13.3692034]
[1734006432588,2.1668,230.69,230.65,2.1671]
[1734006434095,2.1668,230.69,230.64,2.1673]
[1734006434595,2.02,230.7,230.64,2.1673]
[1734006434795,2.1669,230.68,230.64,2.1673]
[1734006435497,2.1669,230.68,230.63,15.5366034]
[1734006435899,10.21020503,230.7,230.63,15.5366034]
[1734006436092,2.167,230.67,230.63,15.5366034]
[1734006436294,8.19020503,230.68,230.61,2.1675]
[1734006436694,2.1672,230.65,230.6,10.35780503]
[1734006437201,4.1872,230.65,230.6,10.35780503]
[1734006437501,4.1872,230.65,230.6,2.1676]
[1734006438490,2.02,230.65,230.59,2.1677]
[1734006438899,2.02,230.65,230.58,8.19020503]
[1734006439199,2.1674,230.63,230.58,10.35800503]
[1734006439591,2.02,230.65,230.53,1.4261]
[1734006439793,8.19020503,230.62,230.55,2.1681]
[1734006439991,8.19020503,230.6,230.51,2.02]
[1734006440191,10.21020503,230.6,230.52,8.19020503]
[1734006440593,2.1679,230.58,230.53,5.10295791]
[1734006441400,2.1679,230.58,230.53,7.27125791]
[1734006442400,2.168,230.57,230.52,8.19020503]
[1734006442600,2.168,230.57,230.5,8.19020503]
[1734006442800,8.19020503,230.58,230.5,8.19020503]
[1734006443104,10.35810503,230.58,230.53,2.1683]
[1734006443900,4.1877,230.6,230.55,2.1681]
[1734006445307,2.1677,230.6,230.55,2.1681]
[1734006445605,4.1877,230.6,230.55,2.1681]
[1734006446805,2.1677,230.6,230.55,2.1681]
[1734006447011,4.1877,230.6,230.55,2.1681]
[1734006447403,4.1877,230.6,230.54,8.19020503]
[1734006447606,4.1877,230.6,230.56,2.168]
[1734006448002,2.02,230.6,230.56,10.35820503]
[1734006448208,2.02,230.6,230.57,2.1679]
[1734006450808,4.1877,230.6,230.57,2.1679]
[1734006452620,2.02,230.6,230.59,2.1678]
[1734006453517,2.02,230.6,230.51,7.12168392]
[1734006453716,2.02,230.6,230.55,8.19020503]
[1734006456417,2.02,230.6,230.57,2.1679]
[1734006458820,2.02,230.6,230.58,2.1678]
[1734006459119,2.02,230.63,230.58,2.1678]
[1734006459816,2.1677,230.61,230.58,2.1678]
[1734006461122,8.19020503,230.6,230.52,8.19020503]
[1734006461321,8.19020503,230.6,230.51,5.10168392]
[1734006461521,8.19020503,230.6,230.51,13.29188895]
[1734006461724,2.168,230.57,230.53,2.1683]
[1734006461918,4.188,230.57,230.53,2.1683]
[1734006462322,4.188,230.57,230.52,2.1684]
[1734006462624,2.02,230.57,230.53,8.19020503]
[1734006463323,2.02,230.57,230.51,5.10168392]
[1734006463524,2.02,230.57,230.53,8.19020503]
[1734006463822,2.02,230.57,230.53,10.35840503]
[1734006465215,2.02,230.57,230.53,2.1682]
[1734006465723,4.188,230.57,230.52,2.1684]
[1734006466019,2.02,230.57,230.51,5.10168392]
[1734006466219,2.02,230.57,230.45,1.4199]
[1734006466421,8.19020503,230.56,230.48,8.19020503]
[1734006467323,8.19020503,230.56,230.45,3.4399]
[1734006467523,2.1683,230.54,230.49,2.1686]
[1734006467724,8.19020503,230.56,230.41,1.4361]
[1734006468019,2.1685,230.51,230.47,2.1688]
[1734006468223,2.1685,230.51,230.42,2.02]
[1734006468421,2.1685,230.51,230.46,5.09073861]
[1734006469722,2.1685,230.51,230.47,2.1689]
[1734006470727,2.1685,230.51,230.46,2.169]
[1734006471328,10.21020503,230.52,230.41,1.4361]
[1734006471518,10.21020503,230.52,230.44,10.35930503]
[1734006471519,2.1686,230.5,230.44,10.35930503]
[1734006471725,2.1686,230.5,230.44,8.19020503]
[1734006471924,2.1685,230.51,230.46,2.169]
[1734006475231,2.02,230.52,230.46,8.19020503]
[1734006475426,1.3291,230.55,230.48,8.19020503]
[1734006475427,2.02,230.55,230.48,8.19020503]
[1734006476823,10.21020503,230.55,230.48,8.19020503]
[1734006477228,12.37830503,230.55,230.5,2.1685]
[1734006477429,4.1881,230.55,230.48,8.19020503]
[1734006478629,4.1881,230.55,230.51,2.1685]
[1734006479930,12.37830503,230.55,230.51,2.1685]
[1734006480828,4.1881,230.55,230.52,2.1684]
[1734006482030,8.19020503,230.54,230.43,5.27475058]
[1734006482332,8.19020503,230.49,230.4,8.19020503]
[1734006482532,2.02,230.48,230.42,8.19020503]
[1734006483133,4.1888,230.48,230.42,8.19020503]
[1734006484031,4.1888,230.48,230.44,2.1691]
[1734006485028,2.02,230.48,230.4,8.19020503]
[1734006485234,2.1689,230.47,230.43,2.1693]
[1734006486432,2.02,230.48,230.42,2.1694]
[1734006486632,2.169,230.46,230.42,2.1694]
[1734006488041,2.169,230.46,230.4,7.41861274]
[1734006489030,2.169,230.46,230.4,2.1695]
[1734006489732,2.169,230.46,230.38,8.19020503]
[1734006489932,2.169,230.46,230.41,2.1694]
[1734006491041,8.19020503,230.47,230.41,2.1694]
[1734006491237,2.1691,230.45,230.41,2.1694]
[1734006491939,10.35930503,230.45,230.41,2.1694]
[1734006493741,2.1692,230.44,230.33,3.4588]
[1734006493940,2.02,230.43,230.37,8.19020503]
[1734006494338,2.02,230.43,230.39,2.1696]
[1734006494733,4.1893,230.43,230.39,2.1696]
[1734006496543,4.1893,230.43,230.32,88.05078357]
[1734006496544,8.19020503,230.41,230.21,119.6652241]
[1734006496746,8.19020503,230.33,230.24,8.19020503]
[1734006497045,10.21020503,230.33,230.24,8.19020503]
[1734006497239,10.21020503,230.33,230.28,2.1706]
[1734006498040,10.21020503,230.33,230.22,3.3966]
[1734006498041,2.02,230.33,230.29,8.19020503]
[1734006498437,10.21020503,230.38,230.31,8.19020503]
[1734006498743,8.19020503,230.34,230.27,13.47689548]
[1734006499137,8.19020503,230.34,230.27,5.28669045]
[1734006499339,8.19020503,230.32,230.27,5.28669045]
[1734006499539,10.21020503,230.32,230.27,5.28669045]
[1734006500142,2.02,230.32,230.29,2.1706]
[1734006502445,2.02,230.32,230.22,3.3966]
[1734006502748,2.02,230.32,230.25,8.19020503]
[1734006503150,2.02,230.32,230.29,2.1706]
[1734006504047,2.02,230.32,230.26,5.17414116]
[1734006504649,2.02,230.32,230.27,2.1707]
[1734006504852,2.02,230.32,230.26,5.17414116]
[1734006506654,2.02,230.32,230.31,2.1704]
[1734006506854,2.02,230.32,230.22,3.3966]
[1734006507053,2.02,230.32,230.22,1.3766]
[1734006507054,8.19020503,230.31,230.22,1.3766]
[1734006507255,8.19020503,230.31,230.23,8.19020503]
[1734006507551,8.19020503,230.31,230.22,1.3766]
[1734006507552,8.19020503,230.31,230.27,2.1707]
[1734006508153,8.19020503,230.31,230.28,2.1707]
[1734006509053,2.02,230.32,230.28,2.1707]
[1734006510156,2.02,230.32,230.29,2.1706]
[1734006513055,2.1706,230.29,230.23,2.1711]
[1734006513260,8.19020503,230.27,230.23,2.1711]
[1734006513454,10.21020503,230.27,230.19,8.19020503]
[1734006513657,2.02,230.27,230.19,8.19020503]
[1734006513956,2.02,230.27,230.21,8.19020503]
[1734006514152,2.02,230.27,230.21,5.23236918]
[1734006516656,2.02,230.27,230.25,2.171]
[1734006517053,1.386,230.42,230.24,8.19020503]
[1734006517360,8.19020503,230.34,230.26,8.19020503]
[1734006517655,2.02,230.33,230.26,8.19020503]
[1734006518255,2.02,230.33,230.29,2.1705]
[1734006518860,2.02,230.34,230.3,2.1705]
[1734006519060,2.02,230.34,230.26,8.19020503]
[1734006519263,2.02,230.34,230.28,8.19020503]
[1734006519559,8.19020503,230.35,230.32,2.1702]
[1734006520354,8.19020503,230.35,230.28,8.19020503]
[1734006520556,8.19020503,230.35,230.33,2.1701]
[1734006521361,2.02,230.36,230.33,2.1701]
[1734006521561,10.21020503,230.36,230.33,2.1701]
[1734006522464,8.19020503,230.36,230.33,2.1701]
[1734006522665,10.21020503,230.36,230.33,2.1701]
[1734006523364,12.38010503,230.36,230.32,2.1703]
[1734006524661,10.21020503,230.36,230.27,8.19020503]
[1734006524865,10.21020503,230.36,230.33,2.1702]
[1734006527264,8.19020503,230.34,230.22,1.3455]
[1734006527469,10.36060503,230.32,230.28,2.1707]
[1734006528569,10.36060503,230.32,230.27,2.1708]
[1734006528771,8.19020503,230.3,230.22,9.53570503]
[1734006528975,10.21020503,230.3,230.22,9.53570503]
[1734006529660,10.21020503,230.3,230.26,2.1708]
[1734006530660,12.38070503,230.3,230.26,2.1708]
[1734006530864,12.38070503,230.3,230.22,9.53570503]
[1734006531063,10.21020503,230.3,230.22,8.19020503]
[1734006531861,8.19020503,230.28,230.21,5.23236918]
[1734006532170,8.19020503,230.28,230.21,13.42257421]
[1734006532375,8.19020503,230.26,230.21,5.23236918]
[1734006532868,2.171,230.25,230.2,2.1714]
[1734006533064,4.191,230.25,230.2,2.1714]
[1734006533368,8.19020503,230.24,230.18,86.06809447]
[1734006533566,8.19020503,230.24,230.18,91.36555325]
[1734006534571,10.36130503,230.24,230.19,2.1715]
[1734006535266,10.36130503,230.24,230.2,2.1714]
[1734006535465,2.02,230.25,230.18,86.06809447]
[1734006535466,8.19020503,230.22,230.18,86.06809447]
[1734006536070,8.19020503,230.22,230.18,88.23969447]
[1734006536660,8.19020503,230.23,230.18,88.23969447]
[1734006536866,10.36140503,230.23,230.18,86.06809447]
[1734006537071,10.36140503,230.23,230.15,5.21265326]
[1734006537268,2.1712,230.23,230.15,5.21265326]
[1734006537571,10.36140503,230.23,230.16,8.19020503]
[1734006538569,2.1712,230.23,230.18,2.1716]
[1734006538771,10.36140503,230.23,230.18,2.1716]
[1734006539367,2.02,230.25,230.16,8.19020503]
[1734006539562,8.19020503,230.24,230.2,2.1714]
[1734006539963,2.02,230.25,230.18,10.36180503]
[1734006540168,10.21020503,230.25,230.18,8.19020503]
[1734006540365,10.21020503,230.25,230.15,5.21265326]
[1734006540366,8.19020503,230.23,230.15,5.21265326]
[1734006540771,10.36140503,230.23,230.18,2.1716]
[1734006540971,8.19020503,230.21,230.18,2.1716]
[1734006541169,8.19020503,230.21,230.15,5.21265326]
[1734006541470,8.19020503,230.21,230.17,2.1717]
[1734006541663,8.19020503,230.19,230.11,1.4073]
[1734006541869,2.02,230.19,230.14,2.172]
[1734006542070,8.19020503,230.17,230.09,8.19020503]
[1734006543270,8.19020503,230.17,230.13,2.1721]
[1734006543469,8.19020503,230.17,230.11,8.19020503]
[1734006544778,8.19020503,230.17,230.14,2.172]
[1734006545671,2.02,230.19,230.15,2.1719]
[1734006545879,10.21020503,230.21,230.13,8.19020503]
[1734006546578,10.21020503,230.21,230.11,2.02]
[1734006546770,10.21020503,230.21,230.13,8.19020503]
[1734006547567,10.21020503,230.21,230.11,2.02]
[1734006547568,10.21020503,230.21,230.17,2.1716]
[1734006547971,10.21020503,230.21,230.13,8.19020503]
[1734006548169,10.21020503,230.21,230.18,2.1716]
[1734006548374,2.7509,230.28,230.15,8.19020503]
[1734006548571,10.36100503,230.27,230.19,8.19020503]
[1734006548768,2.02,230.26,230.19,8.19020503]
[1734006549176,2.02,230.26,230.22,2.1712]
[1734006549877,2.02,230.26,230.19,8.19020503]
[1734006550073,10.36100503,230.27,230.23,2.1711]
[1734006550269,12.38100503,230.27,230.19,8.19020503]
[1734006550475,2.02,230.27,230.26,2.1709]
[1734006552076,9.51470503,230.29,230.27,2.1707]
[1734006552480,8.19020503,230.29,230.28,2.1707]
[1734006552780,8.19020503,230.29,230.21,8.19020503]
[1734006553679,10.36090503,230.29,230.21,8.19020503]
[1734006554477,2.02,230.3,230.21,8.19020503]
[1734006554478,10.21020503,230.3,230.21,8.19020503]
[1734006555184,8.19020503,230.28,230.21,8.19020503]
[1734006555780,10.36090503,230.28,230.24,2.171]
[1734006556078,10.21020503,230.28,230.21,8.19020503]
[1734006557281,10.21020503,230.28,230.25,2.1709]
[1734006560889,10.21020503,230.28,230.27,2.1708]
[1734006561293,2.02,230.28,230.27,2.1708]
[1734006562296,8.19020503,230.31,230.28,2.1706]
[1734006562594,8.19020503,230.31,230.23,8.19020503]
[1734006562797,8.19020503,230.31,230.28,2.1706]
[1734006563997,4.1827,230.35,230.27,8.19020503]
[1734006564191,12.37290503,230.35,230.27,8.19020503]
[1734006564391,8.19020503,230.33,230.3,2.1704]
[1734006565101,11.04580503,230.35,230.27,8.19020503]
[1734006566693,9.61190503,230.35,230.33,2.1702]
[1734006566899,9.61190503,230.35,230.27,8.19020503]
[1734006567397,8.19020503,230.35,230.27,8.19020503]
[1734006567903,10.21020503,230.37,230.29,8.19020503]
[1734006568303,8.19020503,230.37,230.34,2.1701]
[1734006568500,10.21020503,230.37,230.34,2.1701]
[1734006571200,2.02,230.37,230.34,2.1701]
[1734006576113,2.17,230.36,230.33,2.1702]
[1734006578412,2.17,230.36,230.34,2.1701]
[1734006581220,10.21020503,230.37,230.29,8.19020503]
[1734006581221,2.02,230.37,230.29,8.19020503]
[1734006581419,10.21020503,230.37,230.35,2.17]
[1734006581919,2.1701,230.34,230.31,2.1703]
[1734006584621,8.19020503,230.35,230.27,8.19020503]
[1734006584622,8.19020503,230.36,230.34,2.1701]
[1734006584821,8.19020503,230.36,230.25,2.02]
[1734006585023,8.19020503,230.34,230.26,8.19020503]
[1734006585622,2.1701,230.35,230.28,2.1706]
[1734006585921,10.36030503,230.35,230.26,8.19020503]
[1734006586222,8.19020503,230.35,230.26,8.19020503]
[1734006587118,8.19020503,230.35,230.23,4.3422]
[1734006587424,8.19020503,230.35,230.27,8.19020503]
[1734006587716,8.19020503,230.35,230.31,2.1704]
[1734006587717,2.17,230.35,230.31,2.1704]
[1734006589120,2.17,230.35,230.27,8.19020503]
[1734006589319,2.17,230.35,230.32,2.1703]
[1734006597822,2.17,230.35,230.33,2.1702]
[1734006600329,2.1697,230.39,230.36,2.1699]
[1734006600527,0.33739,230.48,230.34,8.19020503]
[1734006600528,8.19020503,230.42,230.34,8.19020503]
[1734006600735,10.21020503,230.42,230.34,8.19020503]
[1734006601025,4.1893,230.43,230.4,2.1695]
[1734006601423,4.1893,230.43,230.39,2.1696]
[1734006602023,10.35960503,230.42,230.39,2.1696]
[1734006604030,10.35960503,230.42,230.34,8.19020503]
[1734006604031,2.02,230.43,230.41,2.1694]
[1734006604235,2.02,230.43,230.38,8.19020503]
[1734006605939,2.169,230.46,230.41,2.1694]
[1734006607643,2.169,230.46,230.42,2.1693]
[1734006607837,12.37910503,230.47,230.42,2.1693]
[1734006608448,10.21020503,230.47,230.44,2.1691]
[1734006608644,0.33739,230.48,230.42,8.19020503]
[1734006608844,0.33739,230.48,230.44,8.19020503]
[1734006610140,0.33739,230.48,230.47,2.1689]
[1734006612545,2.02,230.58,230.46,8.19020503]
[1734006612848,2.02,230.58,230.53,8.19020503]
[1734006613037,2.02,230.58,230.53,10.35850503]
[1734006613844,8.19020503,230.6,230.53,8.19020503]
[1734006614139,2.1678,230.59,230.54,2.1682]
[1734006615440,2.7612,230.64,230.53,8.19020503]
[1734006615441,8.19020503,230.62,230.53,8.19020503]
[1734006615743,0.24771,230.6,230.55,8.19020503]
[1734006616447,0.24771,230.6,230.57,2.1679]
[1734006617747,0.24771,230.6,230.58,2.1678]
[1734006617950,8.43791503,230.6,230.53,8.19020503]
[1734006618246,2.1678,230.59,230.53,8.19020503]
[1734006618449,8.43791503,230.6,230.51,8.19020503]
[1734006618850,2.1678,230.59,230.55,2.1681]
[1734006619544,8.43791503,230.6,230.55,2.1681]
[1734006620143,0.24771,230.6,230.55,2.1681]
[1734006621953,0.24771,230.6,230.56,2.168]
[1734006622350,0.24771,230.6,230.53,8.19020503]
[1734006622851,0.24771,230.6,230.49,2.0]
[1734006622852,10.60561503,230.6,230.49,2.0]
[1734006623052,10.60561503,230.6,230.52,8.19020503]
[1734006623053,8.43791503,230.6,230.52,8.19020503]
[1734006624253,2.1679,230.58,230.54,2.1682]
[1734006624453,4.1679,230.58,230.54,2.1682]
[1734006624651,2.0,230.58,230.52,8.19020503]
[1734006624852,0.24771,230.6,230.54,8.19020503]